fUSD/lending_fUSD_20250226
["ID","MTS","AMOUNT","RATE_DAILY","PERIOD"]
[354573715,1740579062911,-1674.03,0.00039449,14]
[354573716,1740579062920,-500.0,0.00039449,14]
[354573717,1740579062929,-500.0,0.00039449,14]
[354573718,1740579062938,-712.51,0.00039449,14]
[354573719,1740579062948,-500.0,0.00039449,14]
[354573720,1740579062957,-990.23,0.00039449,14]
[354573721,1740579062965,-1962.02,0.00039449,14]
[354573722,1740579062975,-500.0,0.00039449,14]
[354573723,1740579062985,-500.0,0.00039449,14]
[354573724,1740579062994,-500.0,0.00039449,14]
[354573725,1740579063003,-628.58,0.00039449,14]
[354573726,1740579063012,-693.39,0.00039449,14]
[354573727,1740579063021,-807.24,0.00039449,14]
[354573728,1740579063031,-500.0,0.00039449,14]
[354573729,1740579063041,-500.0,0.00039449,14]
[354573730,1740579063055,-602.89372897,0.00039449,14]
[354573731,1740579063064,-500.0,0.00039449,14]
[354573732,1740579063077,-500.0,0.00039449,14]
[354573733,1740579063087,-500.0,0.00039449,14]
[354573734,1740579063097,-766.03,0.00039449,14]
[354573735,1740579063106,-500.0,0.00039449,14]
[354573736,1740579063116,-500.0,0.00039449,14]
[354573737,1740579063125,-500.0,0.00039449,14]
[354573738,1740579063134,-500.0,0.00039449,14]
[354573739,1740579063144,-2132.27,0.00039449,14]
[354573740,1740579063154,-500.0,0.00039449,14]
[354573741,1740579063167,-569.13,0.00039449,14]
[354573742,1740579063176,-765.88,0.00039449,14]
[354573743,1740579063186,-500.0,0.00039449,14]
[354573744,1740579063196,-500.0,0.00039449,14]
[354573745,1740579063207,-642.3,0.00039449,14]
[354573746,1740579063217,-803.74,0.00039449,14]
[354573747,1740579063227,-923.56,0.00039449,14]
[354573748,1740579063237,-1195.67,0.00039449,14]
[354573749,1740579063247,-959.11,0.00039449,14]
[354573750,1740579063257,-500.0,0.00039449,14]
[354573751,1740579063267,-1531.18,0.00039449,14]
[354573752,1740579063276,-971.94,0.00039449,14]
[354573753,1740579063286,-1072.53,0.00039449,14]
[354573754,1740579063296,-2069.97,0.00039449,14]
[354573755,1740579063306,-500.0,0.00039449,14]
[354573756,1740579063316,-516.84,0.00039449,14]
[354573757,1740579063329,-661.53,0.00039449,14]
[354573758,1740579063339,-1839.88,0.00039449,14]
[354573759,1740579063349,-1359.96,0.00039449,14]
[354573760,1740579063359,-1985.62,0.00039449,14]
[354573761,1740579063369,-649.95,0.00039449,14]
[354573762,1740579063379,-1364.43,0.00039449,14]
[354573763,1740579063390,-1535.28,0.00039449,14]
[354573764,1740579063400,-1331.69,0.00039449,14]
[354573765,1740579063411,-938.39,0.00039449,14]
[354573766,1740579063420,-559.38,0.00039449,14]
[354573767,1740579063431,-500.0,0.00039449,14]
[354573768,1740579063442,-1624.0,0.00039449,14]
[354573769,1740579063452,-1284.75,0.00039449,14]
[354573770,1740579063462,-1147.1,0.00039449,14]
[354573771,1740579063472,-500.0,0.00039449,14]
[354573772,1740579063482,-500.0,0.00039449,14]
[354573773,1740579063492,-500.0,0.00039449,14]
[354573774,1740579063501,-3448.1,0.00039449,14]
[354573775,1740579063512,-1343.45,0.00039449,14]
[354573776,1740579063521,-995.8,0.00039449,14]
[354573777,1740579063531,-1489.87,0.00039449,14]
[354573778,1740579063540,-500.0,0.00039449,14]
[354573779,1740579063550,-932.67,0.00039449,14]
[354573780,1740579063559,-500.0,0.00039449,14]
[354573781,1740579063571,-729.49,0.00039449,14]
[354573782,1740579063580,-1092.54,0.00039449,14]
[354573783,1740579063591,-1327.39,0.00039449,14]
[354573784,1740579063600,-1101.87,0.00039449,14]
[354573785,1740579063610,-699.61,0.00039449,14]
[354573786,1740579063620,-1570.33,0.00039449,14]
[354573787,1740579063630,-969.11,0.00039449,14]
[354573788,1740579063639,-500.0,0.00039449,14]
[354573789,1740579063649,-843.19,0.00039449,14]
[354573790,1740579063659,-500.0,0.00039449,14]
[354573791,1740579063668,-500.0,0.00039449,14]
[354573792,1740579063678,-1269.57,0.00039449,14]
[354573793,1740579063687,-238.82643982,0.00039449,14]
[354573794,1740579063697,-500.0,0.00039449,14]
[354573795,1740579063706,-988.96,0.00039449,14]
[354573796,1740579063716,-1044.75,0.00039449,14]
[354573797,1740579063725,-518.04,0.00039449,14]
[354573798,1740579063734,-583.83,0.00039449,14]
[354573799,1740579063744,-500.0,0.00039449,14]
[354573800,1740579063754,-963.56,0.00039449,14]
[354573801,1740579063764,-300.0,0.00039449,14]
[354573802,1740579063773,-1823.45,0.00039449,14]
[354573803,1740579063784,-985.02,0.00039449,14]
[354573804,1740579063794,-1313.1,0.00039449,14]
[354573805,1740579063804,-1094.31,0.00039449,14]
[354573806,1740579063814,-500.0,0.00039449,14]
[354573807,1740579063825,-987.41,0.00039449,14]
[354573808,1740579063835,-1261.86,0.00039449,14]
[354573809,1740579063845,-500.0,0.00039449,14]
[354573810,1740579063856,-2623.37,0.00039449,14]
[354573811,1740579063866,-631.48,0.00039449,14]
[354573812,1740579063875,-500.0,0.00039449,14]
[354573813,1740579063885,-515.77882737,0.00039449,14]
[354573814,1740579063895,-1194.79,0.00039449,14]
[354573815,1740579063906,-500.0,0.00039449,14]
[354573816,1740579064218,-1009.46,0.00039449,14]
[354573817,1740579064228,-681.97,0.00039449,14]
[354573818,1740579064238,-500.0,0.00039449,14]
[354573819,1740579064249,-1820.9,0.00039449,14]
[354573820,1740579064258,-1826.89,0.00039449,14]
[354573821,1740579064268,-630.45,0.00039449,14]
[354573822,1740579064278,-500.0,0.00039449,14]
[354573823,1740579064288,-695.83,0.00039449,14]
[354573824,1740579064298,-883.53,0.00039449,14]
[354573825,1740579064308,-500.0,0.00039449,14]
[354573826,1740579064320,-780.6,0.00039449,14]
[354573827,1740579064330,-1217.03,0.00039449,14]
[354573828,1740579064340,-500.0,0.00039449,14]
[354573829,1740579064350,-500.0,0.00039449,14]
[354573830,1740579064361,-1540.48,0.00039449,14]
[354573831,1740579064370,-500.0,0.00039449,14]
[354573832,1740579064380,-523.52511215,0.00039449,14]
[354573833,1740579064390,-1394.53,0.00039449,14]
[354573834,1740579064401,-500.0,0.00039449,14]
[354573835,1740579064411,-1632.46,0.00039449,14]
[354573836,1740579064422,-734.41,0.00039449,14]
[354573837,1740579064432,-500.0,0.00039449,14]
[354573838,1740579064442,-500.0,0.00039449,14]
[354573839,1740579064452,-629.86,0.00039449,14]
[354573840,1740579064462,-500.0,0.00039449,14]
[354573841,1740579064472,-611.23,0.00039449,14]
[354573842,1740579064482,-657.24,0.00039449,14]
[354573843,1740579064492,-967.67,0.00039449,14]
[354573844,1740579064502,-1297.29,0.00039449,14]
[354573845,1740579064513,-2160.04,0.00039449,14]
[354573846,1740579064524,-687.1,0.00039449,14]
[354573847,1740579064534,-1405.07,0.00039449,14]
[354573848,1740579064544,-500.0,0.00039449,14]
[354573849,1740579064554,-1312.8,0.00039449,14]
[354573850,1740579064565,-574.68,0.00039449,14]
[354573851,1740579064583,-1566.69,0.00039449,14]
[354573852,1740579064594,-1850.36,0.00039449,14]
[354573853,1740579064605,-2688.95,0.00039449,14]
[354573854,1740579064615,-500.0,0.00039449,14]
[354573855,1740579064626,-634.52,0.00039449,14]
[354573856,1740579064636,-500.0,0.00039449,14]
[354573857,1740579064646,-2639.65,0.00039449,14]
[354573858,1740579064656,-1346.1,0.00039449,14]
[354573859,1740579064667,-597.82,0.00039449,14]
[354573860,1740579064677,-500.0,0.00039449,14]
[354573861,1740579064686,-783.94,0.00039449,14]
[354573862,1740579064696,-1875.46,0.00039449,14]
[354573863,1740579064706,-500.0,0.00039449,14]
[354573864,1740579064716,-3302.05,0.00039449,14]
[354573865,1740579064726,-500.0,0.00039449,14]
[354573866,1740579064736,-1299.24,0.00039449,14]
[354573867,1740579064746,-10982.95,0.00039449,14]
[354573868,1740579064756,-500.0,0.00039449,14]
[354573869,1740579064767,-992.48,0.00039449,14]
[354573870,1740579064777,-1002.34,0.00039449,14]
[354573871,1740579064786,-500.0,0.00039449,14]
[354573872,1740579064797,-500.0,0.00039449,14]
[354573873,1740579064807,-2956.75,0.00039449,14]
[354573874,1740579064816,-1260.8,0.00039449,14]
[354573875,1740579064831,-867.41,0.00039449,14]
[354573876,1740579064841,-947.35,0.00039449,14]
[354573877,1740579064851,-770.05,0.00039449,14]
[354573878,1740579064861,-1081.94,0.00039449,14]
[354573879,1740579064870,-1321.65,0.00039449,14]
[354573880,1740579064880,-500.0,0.00039449,14]
[354573881,1740579064889,-2800.68,0.00039449,14]
[354573882,1740579064899,-546.52,0.00039449,14]
[354573883,1740579064909,-534.66,0.00039449,14]
[354573884,1740579064918,-500.0,0.00039449,14]
[354573885,1740579064928,-736.78,0.00039449,14]
[354573886,1740579064938,-500.0,0.00039449,14]
[354573887,1740579064947,-504.24,0.00039449,14]
[354573888,1740579064961,-501.44881331,0.00039449,14]
[354573889,1740579064971,-9015.06,0.00039449,14]
[354573890,1740579064980,-836.99,0.00039449,14]
[354573891,1740579064990,-723.81,0.00039449,14]
[354573892,1740579065000,-500.0,0.00039449,14]
[354573893,1740579065010,-515.9,0.0003945,14]
[354573894,1740579065019,-500.0,0.0003945,14]
[354573895,1740579065028,-1834.5,0.0003945,14]
[354573896,1740579065038,-500.0,0.0003945,14]
[354573897,1740579065047,-944.67,0.0003945,14]
[354573898,1740579065057,-500.0,0.0003945,14]
[354573899,1740579065067,-791.73,0.0003945,14]
[354573900,1740579065079,-820.02,0.0003945,14]
[354573901,1740579065089,-500.0,0.0003945,14]
[354573902,1740579065099,-1056.64,0.0003945,14]
[354573903,1740579065109,-1537.93,0.0003945,14]
[354573904,1740579065119,-1621.59,0.0003945,14]
[354573905,1740579065128,-500.0,0.0003945,14]
[354573906,1740579065138,-1394.71,0.0003945,14]
[354573907,1740579065148,-2100.0,0.0003945,14]
[354573908,1740579065159,-500.0,0.0003945,14]
[354573909,1740579065169,-500.0,0.0003945,14]
[354573910,1740579065178,-500.0,0.0003945,14]
[354573911,1740579065188,-500.0,0.0003945,14]
[354573912,1740579065199,-828.74,0.0003945,14]
[354573913,1740579065209,-955.28,0.0003945,14]
[354573914,1740579065221,-500.0,0.0003945,14]
[354573915,1740579065232,-835.57,0.0003945,14]
[354573916,1740579065242,-855.53,0.0003945,14]
[354573917,1740579065251,-1301.61,0.0003945,14]
[354573918,1740579065261,-989.03,0.0003945,14]
[354573919,1740579065270,-1283.55,0.0003945,14]
[354573920,1740579065280,-2008.44,0.0003945,14]
[354573921,1740579065291,-1982.32,0.0003945,14]
[354573922,1740579065301,-1390.29,0.0003945,14]
[354573923,1740579065311,-1560.11,0.0003945,14]
[354573924,1740579065324,-500.0,0.0003945,14]
[354573925,1740579065334,-2225.85,0.0003945,14]
[354573926,1740579065344,-1144.79,0.0003945,14]
[354573927,1740579065353,-3889.48,0.0003945,14]
[354573928,1740579065363,-1958.29,0.0003945,14]
[354573929,1740579065373,-2543.92,0.0003945,14]
[354573930,1740579065383,-1610.63,0.0003945,14]
[354573931,1740579065393,-1123.89,0.0003945,14]
[354573932,1740579065403,-1055.64,0.0003945,14]
[354573933,1740579065414,-1811.37,0.0003945,14]
[354573934,1740579065424,-525.88,0.0003945,14]
[354573935,1740579065433,-1185.45,0.0003945,14]
[354573936,1740579065443,-3527.89,0.0003945,14]
[354573937,1740579065452,-1586.84,0.0003945,14]
[354573938,1740579065462,-1273.45,0.0003945,14]
[354573939,1740579065472,-667.39,0.0003945,14]
[354573940,1740579065481,-1601.72,0.0003945,14]
[354573941,1740579065491,-500.0,0.0003945,14]
[354573942,1740579065502,-633.32,0.0003945,14]
[354573943,1740579065512,-500.0,0.0003945,14]
[354573944,1740579065522,-1548.06,0.0003945,14]
[354573945,1740579065532,-1351.63,0.0003945,14]
[354573946,1740579065542,-1613.65,0.0003945,14]
[354573947,1740579065552,-500.0,0.0003945,14]
[354573948,1740579065563,-500.0,0.00039451,14]
[354573949,1740579065576,-500.0,0.00039451,14]
[354573950,1740579065586,-574.03,0.00039451,14]
[354573951,1740579065596,-583.56,0.00039451,14]
[354573952,1740579065606,-919.11,0.00039451,14]
[354573953,1740579065616,-500.0,0.00039451,14]
[354573954,1740579065626,-500.0,0.00039451,14]
[354573955,1740579065638,-500.0,0.00039451,14]
[354573956,1740579065648,-500.0,0.00039451,14]
[354573957,1740579065658,-500.0,0.00039451,14]
[354573958,1740579065667,-352.81812656,0.00039451,14]
[354573959,1740579065677,-856.74,0.00039451,14]
[354573960,1740579065687,-708.53,0.00039451,14]
[354573961,1740579065696,-687.98,0.00039451,14]
[354573962,1740579065706,-500.0,0.00039451,14]
[354573963,1740579065715,-500.0,0.00039451,14]
[354573964,1740579065724,-1224.09,0.00039451,14]
[354573965,1740579065734,-500.0,0.00039451,14]
[354573966,1740579065744,-642.92,0.00039451,14]
[354573967,1740579065754,-500.0,0.00039451,14]
[354573968,1740579065764,-500.0,0.00039451,14]
[354573969,1740579065774,-500.0,0.00039451,14]
[354573970,1740579065783,-500.0,0.00039451,14]
[354573971,1740579065794,-1378.47,0.00039451,14]
[354573972,1740579065804,-525.37,0.00039451,14]
[354573973,1740579065814,-667.25,0.00039451,14]
[354573974,1740579065827,-1101.68,0.00039451,14]
[354573975,1740579065836,-1827.21,0.00039451,14]
[354573976,1740579065846,-509.67667808,0.00039451,14]
[354573977,1740579065856,-500.0,0.00039451,14]
[354573978,1740579065867,-500.0,0.00039451,14]
[354573979,1740579065877,-500.0,0.00039451,14]
[354573980,1740579065886,-500.0,0.00039451,14]
[354573981,1740579065896,-1293.28,0.00039451,14]
[354573982,1740579065906,-501.66,0.00039451,14]
[354573983,1740579065915,-595.35,0.00039451,14]
[354573984,1740579065924,-1402.84,0.00039451,14]
[354573985,1740579065934,-500.0,0.00039451,14]
[354573986,1740579065944,-1106.24,0.00039451,14]
[354573987,1740579065954,-735.16,0.00039451,14]
[354573988,1740579065963,-1672.09,0.00039451,14]
[354573989,1740579065973,-273.57,0.00039451,14]
[354573990,1740579065983,-858.59,0.00039451,14]
[354573991,1740579065993,-1014.94,0.00039451,14]
[354573992,1740579066003,-150.0,0.00039512,2]
[354573993,1740579066012,-174.36026698,0.00039532,2]
[354573994,1740579066022,-1741.9,0.00039595,14]
[354573995,1740579066032,-2546.12,0.00039595,14]
[354573996,1740579066042,-937.0,0.00039595,7]
[354573997,1740579066052,-1665.48,0.00039595,14]
[354573998,1740579066061,-1924.26,0.00039595,14]
[354573999,1740579066074,-1706.48,0.00039595,14]
[354574000,1740579066084,-1367.39,0.00039595,14]
[354574001,1740579066093,-1305.398709,0.00039595,14]
[354574002,1740579066103,-2092.61,0.00039595,2]
[354574003,1740579066113,-1628.36,0.00039595,14]
[354574004,1740579066123,-1427.72,0.00039595,14]
[354574005,1740579066132,-2164.35,0.00039595,14]
[354574006,1740579066143,-1702.04,0.00039595,14]
[354574007,1740579066155,-2419.07,0.00039595,14]
[354574008,1740579066165,-1249.89,0.00039595,14]
[354574009,1740579066175,-2364.22,0.00039595,14]
[354574010,1740579066185,-1644.73,0.00039595,14]
[354574011,1740579066197,-2453.57,0.00039595,14]
[354574012,1740579066208,-2845.99,0.00039595,14]
[354574013,1740579066218,-10194.41,0.00039595,14]
[354574014,1740579066227,-500.0,0.00039595,14]
[354574015,1740579066238,-5669.11,0.00039595,14]
[354574016,1740579066248,-2373.2,0.00039595,14]
[354574017,1740579066259,-2458.21,0.00039595,14]
[354574018,1740579066268,-1214.82,0.00039595,14]
[354574019,1740579066277,-2584.33,0.00039595,14]
[354574020,1740579066287,-2136.62,0.00039595,14]
[354574021,1740579066296,-1891.52,0.00039595,14]
[354574022,1740579066306,-2800.15,0.00039595,14]
[354574023,1740579066315,-1319.55,0.00039595,14]
[354574024,1740579066330,-500.0,0.00039595,14]
[354574025,1740579066339,-4907.13,0.00039595,14]
[354574026,1740579066350,-1669.57,0.00039595,14]
[354574027,1740579066360,-1022.16,0.00039595,14]
[354574028,1740579066370,-1461.24,0.00039595,14]
[354574029,1740579066380,-2876.07,0.00039595,14]
[354574030,1740579066390,-500.0,0.00039595,14]
[354574031,1740579066399,-4053.62,0.00039595,14]
[354574032,1740579066409,-500.0,0.00039595,14]
[354574033,1740579066419,-2756.34,0.00039595,14]
[354574034,1740579066428,-8461.68,0.00039595,14]
[354574035,1740579066438,-3747.11,0.00039595,14]
[354574036,1740579066448,-1513.27,0.00039595,14]
[354574037,1740579066458,-546.54,0.00039595,14]
[354574038,1740579066468,-500.0,0.00039595,14]
[354574039,1740579066478,-1953.59,0.00039595,14]
[354574040,1740579066487,-1081.18,0.00039595,14]
[354574041,1740579066497,-610.31,0.00039595,14]
[354574042,1740579066507,-3730.81,0.00039595,14]
[354574043,1740579066516,-1118.72,0.00039595,14]
[354574044,1740579066526,-1078.68,0.00039595,14]
[354574045,1740579066536,-1235.06,0.00039595,14]
[354574046,1740579066546,-1173.72,0.00039595,14]
[354574047,1740579066555,-3356.85,0.00039595,14]
[354574048,1740579066565,-3909.95,0.00039595,14]
[354574049,1740579066579,-2504.14,0.00039595,14]
[354574050,1740579066588,-1471.03,0.00039595,14]
[354574051,1740579066598,-3435.84,0.00039595,14]
[354574052,1740579066607,-878.01,0.00039595,14]
[354574053,1740579066617,-1848.9575,0.000396,34]
[354574054,1740579066626,-204.0,0.0003961,30]
[354574055,1740579066636,-208.0,0.0003961,2]
[354574056,1740579066645,-214.35236334,0.00039615,13]
[354574057,1740579066717,-697.39264935,0.0003962,2]
[354574058,1740579066728,-150.0,0.00039621,2]
[354574059,1740579066738,-150.0,0.00039622,2]
[354574060,1740579066747,-150.0,0.0003966,2]
[354574061,1740579066757,-150.0,0.00039666,2]
[354574062,1740579066767,-150.0,0.00039671,2]
[354574063,1740579066778,-2000.0,0.00039678,4]
[354574064,1740579066787,-300.0,0.000397,2]
[354574065,1740579066796,-150.0,0.00039703,2]
[354574066,1740579066805,-2000.0,0.0003971,4]
[354574067,1740579066815,-500.0,0.00039721,14]
[354574068,1740579066827,-500.0,0.00039721,14]
[354574069,1740579066836,-608.73,0.00039721,14]
[354574070,1740579066846,-500.0,0.00039721,14]
[354574071,1740579066856,-500.0,0.00039721,14]
[354574072,1740579066865,-500.0,0.00039721,14]
[354574073,1740579066875,-500.0,0.00039721,14]
[354574074,1740579066884,-500.0,0.00039721,14]
[354574075,1740579066894,-500.0,0.00039721,14]
[354574076,1740579066904,-920.77,0.00039721,14]
[354574077,1740579066913,-1222.03,0.00039721,14]
[354574078,1740579066923,-500.0,0.00039721,14]
[354574079,1740579066932,-765.25,0.00039721,14]
[354574080,1740579066941,-500.0,0.00039721,14]
[354574081,1740579066950,-500.0,0.00039721,14]
[354574082,1740579066960,-500.0,0.00039721,14]
[354574083,1740579066969,-527.94,0.00039721,14]
[354574084,1740579066978,-796.19,0.00039721,14]
[354574085,1740579066987,-528.52,0.00039721,14]
[354574086,1740579066997,-641.57,0.00039721,14]
[354574087,1740579067007,-830.07,0.00039721,14]
[354574088,1740579067016,-702.66,0.00039721,14]
[354574089,1740579067026,-513.17,0.00039721,14]
[354574090,1740579067035,-612.24,0.00039721,14]
[354574091,1740579067044,-500.0,0.00039721,14]
[354574092,1740579067054,-500.0,0.00039721,14]
[354574093,1740579067063,-536.81,0.00039721,14]
[354574094,1740579067075,-988.12,0.00039721,14]
[354574095,1740579067085,-500.0,0.00039721,14]
[354574096,1740579067094,-500.0,0.00039721,14]
[354574097,1740579067103,-500.0,0.00039721,14]
[354574098,1740579067113,-500.0,0.00039721,14]
[354574099,1740579067123,-500.0,0.00039721,14]
[354574100,1740579067133,-824.39,0.00039721,14]
[354574101,1740579067143,-598.8,0.00039721,14]
[354574102,1740579067152,-578.13,0.00039721,14]
[354574103,1740579067164,-500.0,0.00039721,14]
[354574104,1740579067174,-500.0,0.00039721,14]
[354574105,1740579067184,-788.51,0.00039721,14]
[354574106,1740579067194,-632.18,0.00039721,14]
[354574107,1740579067204,-516.45,0.00039721,14]
[354574108,1740579067215,-500.0,0.00039721,14]
[354574109,1740579067224,-917.08,0.00039721,14]
[354574110,1740579067237,-500.0,0.00039721,14]
[354574111,1740579067246,-500.0,0.00039721,14]
[354574112,1740579067255,-500.0,0.00039721,14]
[354574113,1740579067265,-795.74,0.00039721,14]
[354574114,1740579067274,-186.06393248,0.00039721,14]
[354574115,1740579067283,-766.94,0.00039722,14]
[354574116,1740579067293,-526.99,0.00039722,14]
[354574117,1740579067302,-500.0,0.00039722,14]
[354574118,1740579067311,-500.0,0.00039722,14]
[354574119,1740579067322,-877.52,0.00039722,14]
[354574120,1740579067332,-500.0,0.00039722,14]
[354574121,1740579067341,-679.36,0.00039722,14]
[354574122,1740579067352,-675.96,0.00039722,14]
[354574123,1740579067361,-500.0,0.00039722,14]
[354574124,1740579067371,-1354.66,0.00039722,14]
[354574125,1740579067379,-500.0,0.00039722,14]
[354574126,1740579067389,-500.0,0.00039722,14]
[354574127,1740579067398,-800.36,0.00039722,14]
[354574128,1740579067408,-500.0,0.00039722,14]
[354574129,1740579067417,-541.12,0.00039722,14]
[354574130,1740579067427,-1236.59,0.00039722,14]
[354574131,1740579067437,-752.34,0.00039722,14]
[354574132,1740579067446,-749.56,0.00039722,14]
[354574133,1740579067455,-500.0,0.00039722,14]
[354574134,1740579067465,-743.4,0.00039722,14]
[354574135,1740579067474,-829.28,0.00039722,14]
[354574136,1740579067483,-535.43,0.00039722,14]
[354574137,1740579067493,-500.0,0.00039722,14]
[354574138,1740579067502,-1003.13,0.00039722,14]
[354574139,1740579067511,-500.0,0.00039722,14]
[354574140,1740579067521,-714.62,0.00039722,14]
[354574141,1740579067530,-500.0,0.00039722,14]
[354574142,1740579067539,-500.0,0.00039722,14]
[354574143,1740579067549,-500.0,0.00039722,14]
[354574144,1740579067558,-500.0,0.00039722,14]
[354574145,1740579067568,-719.56,0.00039722,14]
[354574146,1740579067579,-878.0,0.00039722,14]
[354574147,1740579067588,-201.82,0.00039722,14]
[354574148,1740579067598,-997.99,0.00039722,14]
[354574149,1740579067607,-500.0,0.00039722,14]
[354574150,1740579067617,-596.86,0.00039722,14]
[354574151,1740579067626,-500.0,0.00039722,14]
[354574152,1740579067636,-585.85,0.00039722,14]
[354574153,1740579067646,-500.0,0.00039722,14]
[354574154,1740579067656,-500.0,0.00039722,14]
[354574155,1740579067666,-500.0,0.00039722,14]
[354574156,1740579067675,-1171.13,0.00039722,14]
[354574157,1740579067685,-500.0,0.00039722,14]
[354574158,1740579067694,-1838.13,0.00039722,14]
[354574159,1740579067703,-741.53,0.00039722,14]
[354574160,1740579067713,-500.0,0.00039722,14]
[354574161,1740579067722,-564.06,0.00039722,14]
[354574162,1740579067732,-500.0,0.00039722,14]
[354574163,1740579067742,-509.73,0.00039722,14]
[354574164,1740579067751,-937.22,0.00039722,14]
[354574165,1740579067761,-909.62,0.00039722,14]
[354574166,1740579067771,-830.44,0.00039722,14]
[354574167,1740579067780,-500.0,0.00039722,14]
[354574168,1740579067789,-621.68,0.00039722,14]
[354574169,1740579067799,-500.0,0.00039722,14]
[354574170,1740579067808,-1599.87,0.00039722,14]
[354574171,1740579067818,-734.05,0.00039722,14]
[354574172,1740579067830,-665.23,0.00039722,14]
[354574173,1740579067840,-500.0,0.00039722,14]
[354574174,1740579067850,-578.81,0.00039722,14]
[354574175,1740579067859,-500.0,0.00039722,14]
[354574176,1740579067869,-500.0,0.00039722,14]
[354574177,1740579067879,-500.0,0.00039722,14]
[354574178,1740579067890,-529.08,0.00039722,14]
[354574179,1740579067900,-500.0,0.00039722,14]
[354574180,1740579067910,-810.96,0.00039722,14]
[354574181,1740579067919,-500.0,0.00039722,14]
[354574182,1740579067929,-606.51,0.00039722,14]
[354574183,1740579067938,-663.25,0.00039722,14]
[354574184,1740579067948,-711.69,0.00039722,14]
[354574185,1740579067957,-714.88,0.00039722,14]
[354574186,1740579067966,-836.72,0.00039722,14]
[354574187,1740579067976,-500.0,0.00039722,14]
[354574188,1740579067985,-500.0,0.00039722,14]
[354574189,1740579067995,-500.0,0.00039722,14]
[354574190,1740579068004,-1203.4,0.00039722,14]
[354574191,1740579068014,-1188.82,0.00039722,14]
[354574192,1740579068023,-785.44,0.00039722,14]
[354574193,1740579068033,-500.0,0.00039722,14]
[354574194,1740579068042,-727.14,0.00039722,14]
[354574195,1740579068052,-989.7,0.00039722,14]
[354574196,1740579068061,-500.0,0.00039722,14]
[354574197,1740579068073,-1157.19,0.00039722,14]
[354574198,1740579068083,-725.63,0.00039722,14]
[354574199,1740579068092,-452.83993879,0.00039722,14]
[354574200,1740579068102,-1380.46,0.00039722,14]
[354574201,1740579068111,-828.64,0.00039722,14]
[354574202,1740579068120,-1383.0,0.00039722,14]
[354574203,1740579068129,-700.6,0.00039722,14]
[354574204,1740579068138,-909.32,0.00039722,14]
[354574205,1740579068153,-500.0,0.00039722,14]
[354574206,1740579068166,-2364.77,0.00039722,14]
[354574207,1740579068175,-908.01,0.00039722,14]
[354574208,1740579068186,-588.95,0.00039722,14]
[354574209,1740579068198,-637.07,0.00039722,14]
[354574210,1740579068207,-579.91839777,0.00039722,14]
[354574211,1740579068217,-2266.37,0.00039722,14]
[354574212,1740579068226,-500.0,0.00039722,14]
[354574213,1740579068237,-1635.54,0.00039722,14]
[354574214,1740579068246,-500.0,0.00039722,14]